fUST/lending_fUST_20241121
["ID","MTS","AMOUNT","RATE_DAILY","PERIOD"]
[342847270,1732179058177,-1000.0,0.00028421,2]
[342847271,1732179058186,-395.31630755,0.00028422,2]
[342847272,1732179058196,-1000.0,0.00028435,2]
[342847273,1732179058205,-1000.0,0.00028439,2]
[342847274,1732179058214,-476.15509545,0.00028477,2]
[342847275,1732179058225,-251.1572225,0.00028478,120]
[342847276,1732179058235,-22914.11154183,0.000285,30]
[342847277,1732179058244,-1000.0,0.0002851,2]
[342847278,1732179058253,-3014.03580475,0.00028546,2]
[342847279,1732179058262,-1000.0,0.00028556,2]
[342847280,1732179058271,-1000.0,0.00028567,2]
[342847281,1732179058280,-151.0,0.00028599,7]
[342847282,1732179058290,-300.0,0.000286,30]
[342847283,1732179058299,-1144.25923367,0.000286,30]
[342847284,1732179058309,-1000.0,0.00028608,2]
[342847285,1732179058319,-1000.0,0.00028612,2]
[342847286,1732179058329,-1000.0,0.00028615,2]
[342847287,1732179058339,-1000.0,0.0002862,2]
[342847288,1732179058348,-1061.47915692,0.00028646,2]
[342847289,1732179058357,-1061.47915692,0.00028646,2]
[342847290,1732179058366,-1380656.70109023,0.00028646,10]
[342847291,1732179058376,-2811255.81476812,0.00028646,10]
[342847292,1732179058489,-345.521,0.00028646,10]
[342847293,1732179058501,-1976.7338584,0.00028646,10]
[342847294,1732179058561,-500.0,0.00021917,2]
[342847295,1732179058572,-500.0,0.00022191,2]
[342847296,1732179058582,-151.0,0.00023561,7]
[342847297,1732179058592,-500.0,0.00023561,2]
[342847298,1732179058601,-500.0,0.00023561,2]
[342847299,1732179058611,-500.0,0.00023835,2]
[342847300,1732179058621,-500.0,0.00023835,2]
[342847301,1732179058630,-500.0,0.00024109,2]
[342847302,1732179058639,-500.0,0.00024109,2]
[342847303,1732179058649,-151.0,0.00024383,7]
[342847304,1732179058659,-436.534,0.00025185,15]
[342847305,1732179058671,-4948.07366225,0.00028646,10]
[342847306,1732179058854,-0.40093607,0.00021917,2]
[342847307,1732179058866,-499.59906393,0.00021917,2]
[342847308,1732179058875,-500.0,0.00021917,2]
[342847309,1732179058884,-500.0,0.00022191,2]
[342847310,1732179058894,-499.3280537,0.00022191,2]
[342847311,1732179058905,-35.25560353,0.00022191,2]
[342847312,1732179058915,-500.0,0.00022465,2]
[342847313,1732179058924,-500.0,0.00022465,2]
[342847314,1732179058999,-500.0,0.00022584,2]
[342847315,1732179059010,-500.0,0.00022739,2]
[342847316,1732179059019,-500.0,0.00022739,2]
[342847317,1732179059028,-500.0,0.00023013,2]
[342847318,1732179059037,-8.40099149,0.00023013,2]
[342847319,1732179059155,-500.0,0.00021917,2]
[342847320,1732179059165,-500.0,0.00022191,2]
[342847321,1732179059174,-190.41225228,0.00022465,2]
[342847322,1732179059184,-491.59900851,0.00023013,2]
[342847323,1732179059193,-291.98014098,0.00023287,2]
[342847324,1732179059203,-500.0,0.00023287,2]
[342847325,1732179059212,-500.0,0.00023287,2]
[342847326,1732179059221,-500.0,0.00023561,2]
[342847327,1732179059232,-500.0,0.00023561,2]
[342847328,1732179059241,-500.0,0.00023835,2]
[342847329,1732179059251,-500.0,0.00023835,2]
[342847330,1732179059261,-500.0,0.00024109,2]
[342847331,1732179059271,-500.0,0.00024109,2]
[342847332,1732179059281,-500.0,0.00024383,2]
[342847333,1732179059290,-500.0,0.00024383,2]
[342847334,1732179059300,-500.0,0.00024383,2]
[342847335,1732179059310,-649.69833432,0.00024383,2]
[342847336,1732179059321,-500.0,0.00024657,2]
[342847337,1732179059333,-500.0,0.00024657,2]
[342847338,1732179059342,-500.0,0.00024657,2]
[342847339,1732179059352,-500.0,0.00024931,2]
[342847340,1732179059362,-500.0,0.00024931,2]
[342847341,1732179059372,-296.31006391,0.00024931,2]
[342847342,1732179059384,-203.68993609,0.00024931,2]
[342847343,1732179059394,-151.0,0.00025,7]
[342847344,1732179059404,-500.0,0.00025205,2]
[342847345,1732179059414,-500.0,0.00025205,2]
[342847346,1732179059424,-643.86281036,0.00025205,2]
[342847347,1732179059434,-500.0,0.00025479,2]
[342847348,1732179059443,-500.0,0.00025479,2]
[342847349,1732179059452,-500.0,0.00025753,2]
[342847350,1732179059462,-549.80159549,0.00025753,2]
[342847351,1732179059472,-151.0,0.00026027,7]
[342847352,1732179059482,-500.0,0.00026027,2]
[342847353,1732179059492,-500.0,0.00026301,2]
[342847354,1732179059501,-500.0,0.00026575,2]
[342847355,1732179059510,-151.0,0.00026849,7]
[342847356,1732179059520,-500.0,0.00026849,2]
[342847357,1732179059529,-3206.993,0.00026855,2]
[342847358,1732179059538,-500.0,0.00027123,2]
[342847359,1732179059548,-500.0,0.00027397,2]
[342847360,1732179059557,-186.12047,0.0002767,7]
[342847361,1732179059566,-500.0,0.00027671,2]
[342847362,1732179059575,-500.0,0.00027945,2]
[342847363,1732179059584,-375.62,0.00028219,2]
[342847364,1732179059594,-1000.0,0.00028591,2]
[342847365,1732179059603,-1004.19949237,0.00028612,2]
[342847366,1732179059613,-1000.0,0.00028619,2]
[342847367,1732179059622,-4245.35069569,0.00028646,10]
[342847370,1732179076506,185.76,0.000251,120]
[342847386,1732179540332,1719.2335473,0.00025999,60]
[342847389,1732179783246,1752.0,0.00026,60]
[342847501,1732180232286,-172.39349817,0.00013873,2]
[342847504,1732180232297,-222.16216,0.00013973,2]
[342847505,1732180232308,-300.0,0.00019573,2]
[342847507,1732180232318,-300.0,0.00019573,2]
[342847510,1732180232328,-24900.0,0.00019574,2]
[342847512,1732180232338,-1820.6038461,0.00019991,2]
[342847513,1732180232348,-267.377303,0.00020214,2]
[342847515,1732180232358,-500.0,0.00020355,2]
[342847517,1732180232369,-500.0,0.00020355,2]
[342847519,1732180232378,-334.66757769,0.00020355,2]
[342847521,1732180232389,-222.16216,0.00020447,2]
[342847523,1732180232400,-5191.02406696,0.00021107,2]
[342847525,1732180232410,-401.52051919,0.00021173,2]
[342847527,1732180232420,-152.34,0.00021207,3]
[342847529,1732180232437,-177.74,0.00021207,3]
[342847531,1732180232449,-533.23,0.00021207,3]
[342847533,1732180232459,-500.0,0.00021216,2]
[342847535,1732180232469,-500.0,0.00021216,2]
[342847537,1732180232481,-500.0,0.00021216,2]
[342847539,1732180232491,-500.0,0.00021216,2]
[342847541,1732180232501,-500.0,0.00021216,2]
[342847543,1732180232511,-500.0,0.00021216,2]
[342847545,1732180232521,-500.0,0.00021216,2]
[342847547,1732180232531,-500.0,0.00021216,2]
[342847549,1732180232541,-500.0,0.00021216,2]
[342847551,1732180232551,-500.0,0.00021216,2]
[342847553,1732180232561,-500.0,0.00021216,2]
[342847555,1732180232571,-500.0,0.00021216,2]
[342847556,1732180232582,-519.27466845,0.00021216,2]
[342847558,1732180232592,-500.0,0.00021216,2]
[342847560,1732180232601,-500.0,0.00021216,2]
[342847562,1732180232611,-179.45631612,0.00021216,2]
[342847564,1732180232621,-234.96659248,0.00021216,2]
[342847566,1732180232632,-500.0,0.00021216,2]
[342847568,1732180232642,-500.0,0.00021216,2]
[342847569,1732180232652,-282.81169593,0.00021216,2]
[342847571,1732180232662,-500.0,0.00021216,2]
[342847572,1732180232673,-235.04121542,0.00021216,2]
[342847573,1732180232683,-500.0,0.00021216,2]
[342847574,1732180232693,-500.0,0.00021216,2]
[342847575,1732180232703,-500.0,0.00021216,2]
[342847576,1732180232713,-500.0,0.00021216,2]
[342847577,1732180232723,-500.0,0.00021216,2]
[342847578,1732180232733,-500.0,0.00021216,2]
[342847579,1732180232743,-500.0,0.00021216,2]
[342847580,1732180232753,-500.0,0.00021216,2]
[342847581,1732180232764,-500.0,0.00021216,2]
[342847582,1732180232774,-515.31350846,0.00021216,2]
[342847583,1732180232785,-500.0,0.00021216,2]
[342847584,1732180232795,-500.0,0.00021216,2]
[342847585,1732180232806,-500.0,0.00021216,2]
[342847586,1732180232816,-500.0,0.00021216,2]
[342847587,1732180232826,-500.0,0.00021216,2]
[342847588,1732180232835,-500.0,0.00021216,2]
[342847589,1732180232846,-500.0,0.00021216,2]
[342847590,1732180232859,-500.0,0.00021216,2]
[342847591,1732180232869,-500.0,0.00021216,2]
[342847592,1732180232879,-500.0,0.00021216,2]
[342847593,1732180232890,-500.0,0.00021216,2]
[342847594,1732180232900,-500.0,0.00021216,2]
[342847595,1732180232913,-500.0,0.00021216,2]
[342847596,1732180232923,-500.0,0.00021216,2]
[342847597,1732180232941,-500.0,0.00021216,2]
[342847598,1732180232951,-500.0,0.00021216,2]
[342847599,1732180232962,-500.0,0.00021216,2]
[342847600,1732180232975,-500.0,0.00021216,2]
[342847601,1732180232984,-500.0,0.00021216,2]
[342847602,1732180232997,-500.0,0.00021216,2]
[342847603,1732180233007,-497.00188419,0.00021216,2]
[342847604,1732180233018,-500.0,0.00021216,2]
[342847605,1732180233034,-500.0,0.00021216,2]
[342847606,1732180233044,-500.0,0.00021216,2]
[342847607,1732180233055,-500.0,0.00021216,2]
[342847608,1732180233066,-500.0,0.00021216,2]
[342847609,1732180233078,-500.0,0.00021216,2]
[342847610,1732180233088,-500.0,0.00021216,2]
[342847611,1732180233099,-500.0,0.00021216,2]
[342847612,1732180233110,-357.88872553,0.00021216,2]
[342847613,1732180233120,-500.0,0.00021216,2]
[342847614,1732180233131,-500.0,0.00021216,2]
[342847615,1732180233142,-500.0,0.00021216,2]
[342847616,1732180233152,-463.96229421,0.00021216,2]
[342847617,1732180233162,-500.0,0.00021216,2]
[342847618,1732180233172,-315.1051622,0.00021216,2]
[342847619,1732180233270,-237.84596769,0.00021216,2]
[342847620,1732180233282,-381.55931297,0.00021216,2]
[342847621,1732180233293,-500.0,0.00021216,2]
[342847622,1732180233303,-384.86970775,0.00021216,2]
[342847623,1732180233313,-500.0,0.00021216,2]
[342847624,1732180233324,-250000.0,0.00021217,2]
[342847625,1732180233334,-500.25882451,0.00021273,2]
[342847626,1732180233344,-564.16281913,0.00021273,2]
[342847627,1732180233355,-500.0,0.00021273,2]
[342847628,1732180233365,-500.0,0.00021273,2]
[342847629,1732180233378,-527.29696343,0.00021273,2]
[342847630,1732180233389,-500.0,0.00021273,2]
[342847631,1732180233399,-500.0,0.00021273,2]
[342847632,1732180233410,-500.0,0.00021273,2]
[342847633,1732180233420,-500.0,0.00021273,2]
[342847634,1732180233436,-500.0,0.00021273,2]
[342847635,1732180233447,-500.0,0.00021273,2]
[342847636,1732180233457,-500.33563402,0.00021273,2]
[342847637,1732180233468,-420.0,0.00021322,2]
[342847638,1732180233483,-401.52051916,0.00021403,2]
[342847639,1732180233495,-420.0,0.00021531,2]
[342847640,1732180233506,-401.52051916,0.00021632,2]
[342847641,1732180233516,-1000.0,0.00021817,2]
[342847642,1732180233527,-835.96657319,0.00021821,2]
[342847643,1732180233538,-500.0,0.00021821,2]
[342847644,1732180233548,-500.0,0.00021821,2]
[342847645,1732180233558,-1000.0,0.00021821,2]
[342847646,1732180233583,-401.52051916,0.00021862,2]
[342847647,1732180233594,-500.0,0.00021917,2]
[342847648,1732180233604,-500.0,0.00021917,2]
[342847649,1732180233614,-500.0,0.00021917,2]
[342847650,1732180233625,-500.0,0.00021917,2]
[342847651,1732180233635,-500.0,0.00021917,2]
[342847652,1732180233646,-500.0,0.00021917,2]
[342847653,1732180233657,-500.0,0.00021917,2]
[342847654,1732180233667,-500.0,0.00021917,2]
[342847655,1732180233677,-500.0,0.00021917,2]
[342847656,1732180233687,-500.0,0.00021917,2]
[342847657,1732180233697,-500.0,0.00021917,2]
[342847658,1732180233708,-500.0,0.00021917,2]
[342847659,1732180233718,-400.33747725,0.00021917,2]
[342847660,1732180233728,-500.0,0.00021917,2]
[342847661,1732180233738,-500.0,0.00021917,2]
[342847662,1732180233748,-500.0,0.00021917,2]
[342847663,1732180233758,-500.0,0.00021917,2]
[342847664,1732180233769,-500.0,0.00021917,2]
[342847665,1732180233779,-500.0,0.00021917,2]
[342847666,1732180233789,-500.0,0.00021917,2]
[342847667,1732180233800,-500.0,0.00021917,2]
[342847668,1732180233810,-500.0,0.00021917,2]
[342847669,1732180233820,-500.0,0.00021917,2]
[342847670,1732180233831,-500.0,0.00021917,2]
[342847671,1732180233840,-500.0,0.00021917,2]
[342847672,1732180233850,-500.0,0.00021917,2]
[342847673,1732180233860,-500.0,0.00021917,2]
[342847674,1732180233870,-500.0,0.00021917,2]
[342847675,1732180233881,-500.0,0.00021917,2]
[342847676,1732180233890,-500.0,0.00021917,2]
[342847677,1732180233900,-500.0,0.00021917,2]
[342847678,1732180233910,-500.0,0.00021917,2]
[342847679,1732180233919,-504.77,0.00021917,2]
[342847680,1732180233934,-565.16494499,0.00021917,2]
[342847681,1732180233948,-500.0,0.00021917,2]
[342847682,1732180233958,-500.0,0.00021917,2]
[342847683,1732180233969,-500.0,0.00021917,2]
[342847684,1732180233980,-500.0,0.00021917,2]
[342847685,1732180233990,-500.0,0.00021917,2]
[342847686,1732180234001,-500.0,0.00021917,2]
[342847687,1732180234012,-500.0,0.00021917,2]
[342847688,1732180234023,-651.59,0.00021917,2]
[342847689,1732180234034,-500.0,0.00021917,2]
[342847690,1732180234044,-500.0,0.00021917,2]
[342847691,1732180234056,-500.0,0.00021917,2]
[342847692,1732180234066,-500.0,0.00021917,2]
[342847693,1732180234079,-500.0,0.00021917,2]
[342847694,1732180234089,-500.0,0.00021917,2]
[342847695,1732180234101,-500.0,0.00021917,2]
[342847696,1732180234111,-500.0,0.00021917,2]
[342847697,1732180234122,-500.0,0.00021917,2]
[342847698,1732180234133,-500.0,0.00021917,2]
[342847699,1732180234144,-588.58,0.00021917,2]
[342847700,1732180234157,-500.0,0.00021917,2]
[342847701,1732180234179,-500.0,0.00021917,2]
[342847702,1732180234203,-500.0,0.00021917,2]
[342847703,1732180234215,-500.0,0.00021917,2]
[342847704,1732180234227,-500.0,0.00021917,2]
[342847705,1732180234239,-500.0,0.00021917,2]
[342847706,1732180234251,-500.0,0.00021917,2]
[342847707,1732180234263,-500.0,0.00021917,2]
[342847708,1732180234275,-500.0,0.00021917,2]
[342847709,1732180234287,-500.0,0.00021917,2]
[342847710,1732180234298,-501.18996241,0.00021917,2]
[342847711,1732180234310,-500.0,0.00021917,2]
[342847712,1732180234322,-500.0,0.00021917,2]
[342847713,1732180234334,-970.97,0.00021917,2]
[342847714,1732180234347,-500.0,0.00021917,2]
[342847715,1732180234357,-500.0,0.00021917,2]
[342847716,1732180234367,-500.0,0.00021917,2]
[342847717,1732180234377,-653.61,0.00021917,2]
[342847718,1732180234387,-618.40897001,0.00021917,2]
[342847719,1732180234397,-500.0,0.00021917,2]
[342847720,1732180234410,-500.0,0.00021917,2]
[342847721,1732180234421,-500.0,0.00021917,2]
[342847722,1732180234437,-500.0,0.00021917,2]
[342847723,1732180234447,-500.0,0.00021917,2]
[342847724,1732180234457,-500.0,0.00021917,2]
[342847725,1732180234469,-996.39,0.00021917,2]
[342847726,1732180234479,-500.0,0.00021917,2]
[342847727,1732180234488,-870.85,0.00021917,2]
[342847728,1732180234498,-500.0,0.00021917,2]
[342847729,1732180234509,-500.0,0.00021917,2]
[342847730,1732180234519,-500.0,0.00021917,2]
[342847731,1732180234530,-500.0,0.00021917,2]
[342847732,1732180234540,-500.0,0.00021917,2]
[342847733,1732180234550,-500.0,0.00021917,2]
[342847734,1732180234575,-500.0,0.00021917,2]
[342847735,1732180234585,-598.91,0.00021917,2]
[342847736,1732180234595,-500.0,0.00021917,2]
[342847737,1732180234605,-1560.77,0.00021917,2]
[342847738,1732180234615,-500.0,0.00021917,2]
[342847739,1732180234626,-500.0,0.00021917,2]
[342847740,1732180234636,-500.0,0.00021917,2]
[342847741,1732180234646,-500.0,0.00021917,2]
[342847742,1732180234656,-500.0,0.00021917,2]
[342847743,1732180234666,-611.28949628,0.00021917,2]
[342847744,1732180234675,-500.0,0.00021917,2]
[342847745,1732180234696,-500.0,0.00021917,2]
[342847746,1732180234706,-568.48756597,0.00021917,2]
[342847747,1732180234715,-500.0,0.00021917,2]
[342847748,1732180234726,-723.15,0.00021917,2]
[342847749,1732180234806,-500.0,0.00021917,2]
[342847750,1732180234818,-500.0,0.00021917,2]
[342847751,1732180234828,-500.0,0.00021917,2]
[342847752,1732180234838,-500.0,0.00021917,2]
[342847753,1732180234847,-603.96009929,0.00021917,2]
[342847754,1732180234857,-500.0,0.00021917,2]
[342847755,1732180234867,-500.0,0.00021917,2]
[342847756,1732180234877,-500.0,0.00021917,2]
[342847757,1732180234886,-500.0,0.00021917,2]
[342847758,1732180234896,-500.0,0.00021917,2]
[342847759,1732180234905,-500.0,0.00021917,2]
[342847760,1732180234915,-500.0,0.00021917,2]
[342847761,1732180234925,-500.0,0.00021917,2]
[342847762,1732180234940,-500.0,0.00021917,2]
[342847763,1732180234950,-500.0,0.00021917,2]
[342847764,1732180234959,-500.0,0.00021917,2]
[342847765,1732180234968,-500.0,0.00021917,2]
[342847766,1732180234979,-500.0,0.00021917,2]
[342847767,1732180234988,-500.0,0.00021917,2]
[342847768,1732180234998,-500.0,0.00021917,2]
[342847769,1732180235007,-500.0,0.00021917,2]
[342847770,1732180235017,-515.48016729,0.00021917,2]
[342847771,1732180235028,-500.0,0.00021917,2]
[342847772,1732180235038,-500.0,0.00021917,2]
[342847773,1732180235047,-500.0,0.00021917,2]
[342847774,1732180235060,-500.0,0.00021917,2]
[342847775,1732180235070,-500.0,0.00021917,2]
[342847776,1732180235080,-500.0,0.00021917,2]
[342847777,1732180235091,-500.0,0.00021917,2]
[342847778,1732180235101,-500.0,0.00021917,2]
[342847779,1732180235112,-500.0,0.00021917,2]
[342847780,1732180235122,-500.0,0.00021917,2]
[342847781,1732180235134,-500.0,0.00021917,2]
[342847782,1732180235144,-500.0,0.00021917,2]
[342847783,1732180235154,-500.0,0.00021917,2]
[342847784,1732180235164,-194.51874087,0.00021917,2]
[342847785,1732180235174,-500.0,0.00021917,2]
[342847786,1732180235188,-500.0,0.00021917,2]
[342847787,1732180235198,-500.0,0.00021917,2]
[342847788,1732180235208,-405.26365846,0.00021917,2]
[342847789,1732180235217,-500.0,0.00021917,2]
[342847790,1732180235227,-500.0,0.00021917,2]
[342847791,1732180235237,-1000.0,0.00021917,2]
[342847792,1732180235245,-500.0,0.00021917,2]
[342847793,1732180235255,-500.0,0.00021917,2]
[342847794,1732180235264,-500.0,0.00021917,2]
[342847795,1732180235274,-500.0,0.00021917,2]
[342847796,1732180235283,-500.0,0.00021917,2]
[342847797,1732180235293,-500.0,0.00021917,2]
[342847798,1732180235302,-500.0,0.00021917,2]
[342847799,1732180235311,-500.0,0.00021917,2]
[342847800,1732180235321,-500.0,0.00021917,2]
[342847801,1732180235330,-536.12,0.00021917,2]
[342847802,1732180235340,-486.08924994,0.00021917,2]
[342847803,1732180235350,-500.0,0.00021917,2]
[342847804,1732180235359,-2362.94,0.00021917,2]
[342847805,1732180235369,-500.0,0.00021917,2]
[342847806,1732180235378,-500.0,0.00021917,2]
[342847807,1732180235388,-500.0,0.00021917,2]
[342847808,1732180235398,-452.61531595,0.00021917,2]
[342847809,1732180235407,-500.0,0.00021917,2]
[342847810,1732180235417,-500.0,0.00021917,2]
[342847811,1732180235427,-500.0,0.00021917,2]
[342847812,1732180235439,-500.0,0.00021917,2]
[342847813,1732180235449,-670.84,0.00021917,2]
[342847814,1732180235458,-575.15766564,0.00021917,2]
[342847815,1732180235468,-500.0,0.00021917,2]
[342847816,1732180235477,-500.0,0.00021917,2]
[342847817,1732180235487,-500.0,0.00021917,2]
[342847818,1732180235497,-220.7813372,0.00021917,2]
[342847819,1732180235507,-500.0,0.00021917,2]
[342847820,1732180235517,-318.3396906,0.00021917,2]
[342847821,1732180235527,-500.0,0.00021917,2]
[342847822,1732180235536,-584.6,0.00021917,2]
[342847823,1732180235545,-500.0,0.00021917,2]
[342847824,1732180235555,-500.0,0.00021917,2]
[342847825,1732180235565,-500.0,0.00021917,2]
[342847826,1732180235574,-525.98,0.00021917,2]
[342847827,1732180235584,-500.0,0.00021917,2]
[342847828,1732180235594,-500.0,0.00021917,2]
[342847829,1732180235603,-500.0,0.00021917,2]
[342847830,1732180235613,-500.0,0.00021917,2]
[342847831,1732180235623,-500.0,0.00021917,2]
[342847832,1732180235632,-500.0,0.00021917,2]
[342847833,1732180235642,-500.0,0.00021917,2]
[342847834,1732180235651,-602.7,0.00021917,2]
[342847835,1732180235660,-500.0,0.00021917,2]
[342847836,1732180235670,-500.0,0.00021917,2]
[342847837,1732180235681,-500.0,0.00021917,2]
[342847838,1732180235691,-2252.3,0.00021917,2]
[342847839,1732180235701,-200.0,0.00021917,2]
[342847840,1732180235710,-500.0,0.00021917,2]
[342847841,1732180235719,-500.0,0.00021917,2]
[342847842,1732180235728,-500.0,0.00021917,2]
[342847843,1732180235738,-500.0,0.00021917,2]
[342847844,1732180235747,-501.23,0.00021917,2]
[342847845,1732180235757,-992.07,0.00021917,2]
[342847846,1732180235766,-500.0,0.00021917,2]
[342847847,1732180235775,-500.0,0.00021917,2]
[342847848,1732180235784,-500.0,0.00021917,2]
[342847849,1732180235793,-783.95,0.00021917,2]
[342847850,1732180235802,-500.0,0.00021917,2]
[342847851,1732180235812,-500.0,0.00021917,2]
[342847852,1732180235821,-500.0,0.00021917,2]
[342847853,1732180235831,-640.78650074,0.00021917,2]
[342847854,1732180235840,-500.0,0.00021917,2]
[342847855,1732180235850,-500.0,0.00021917,2]
[342847856,1732180235859,-500.0,0.00021917,2]
[342847857,1732180235869,-500.0,0.00021917,2]
[342847858,1732180235878,-500.0,0.00021917,2]
[342847859,1732180235887,-3631.76,0.00021917,2]
[342847860,1732180235896,-503.88659365,0.00021917,2]
[342847861,1732180235906,-1124.64,0.00021917,2]
[342847862,1732180235916,-500.0,0.00021917,2]
[342847863,1732180235925,-500.0,0.00021917,2]
[342847864,1732180235938,-18505.84,0.00021917,2]
[342847865,1732180235948,-500.0,0.00021917,2]
[342847866,1732180235957,-500.0,0.00021917,2]
[342847867,1732180235967,-507.63425325,0.00021917,2]
[342847868,1732180236037,-500.0,0.00021917,2]
[342847869,1732180236046,-797.78,0.00021917,2]
[342847870,1732180236059,-500.0,0.00021917,2]
[342847871,1732180236070,-3879.56,0.00021917,2]
[342847872,1732180236079,-1759.52,0.00021917,2]
[342847873,1732180236089,-1080.23,0.00021917,2]
[342847874,1732180236098,-500.0,0.00021917,2]
[342847875,1732180236107,-500.0,0.00021917,2]
[342847876,1732180236117,-500.0,0.00021917,2]
[342847877,1732180236126,-500.0,0.00021917,2]
[342847878,1732180236137,-500.0,0.00021917,2]
[342847879,1732180236148,-4489.93,0.00021917,2]
[342847880,1732180236158,-660.79,0.00021917,2]
[342847881,1732180236167,-500.0,0.00021917,2]
[342847882,1732180236177,-500.0,0.00021917,2]
[342847883,1732180236188,-1779.57,0.00021917,2]
[342847884,1732180236197,-500.0,0.00021917,2]
[342847885,1732180236207,-500.0,0.00021917,2]
[342847886,1732180236216,-593.45,0.00021917,2]
[342847887,1732180236225,-2623.17,0.00021917,2]
[342847888,1732180236235,-500.0,0.00021917,2]
[342847889,1732180236244,-626.01,0.00021917,2]
[342847890,1732180236254,-500.0,0.00021917,2]
[342847891,1732180236263,-500.0,0.00021917,2]
[342847892,1732180236272,-500.0,0.00021917,2]
[342847893,1732180236282,-2887.34,0.00021917,2]
[342847894,1732180236291,-357.37873381,0.00021917,2]
[342847895,1732180236301,-500.0,0.00021917,2]
[342847896,1732180236310,-500.0,0.00021917,2]
[342847897,1732180236320,-500.0,0.00021917,2]
[342847898,1732180236330,-500.0,0.00021917,2]
[342847899,1732180236339,-500.0,0.00021917,2]
[342847900,1732180236349,-500.0,0.00021917,2]
[342847901,1732180236359,-500.0,0.00021917,2]
[342847902,1732180236368,-500.0,0.00021917,2]
[342847903,1732180236377,-871.48,0.00021917,2]
[342847904,1732180236386,-500.0,0.00021917,2]
[342847905,1732180236395,-875.13,0.00021917,2]
[342847906,1732180236405,-500.0,0.00021917,2]
[342847907,1732180236414,-500.0,0.00021917,2]
[342847908,1732180236423,-652.65,0.00021917,2]
[342847909,1732180236435,-500.0,0.00021917,2]
[342847910,1732180236444,-500.0,0.00021917,2]
[342847911,1732180236453,-500.0,0.00021917,2]
[342847912,1732180236463,-282.3565527,0.00021917,2]
[342847913,1732180236472,-500.0,0.00021917,2]
[342847914,1732180236481,-500.0,0.00021917,2]
[342847915,1732180236491,-500.0,0.00021917,2]
[342847916,1732180236501,-550.46915663,0.00021917,2]
[342847917,1732180236511,-500.0,0.00021917,2]
[342847918,1732180236520,-500.0,0.00021917,2]
[342847919,1732180236529,-500.0,0.00021917,2]
[342847920,1732180236538,-637.69,0.00021917,2]
[342847921,1732180236548,-663.01,0.00021917,2]
[342847922,1732180236557,-564.98,0.00021917,2]
[342847923,1732180236567,-500.0,0.00021917,2]
[342847924,1732180236576,-500.0,0.00021917,2]
[342847925,1732180236586,-500.0,0.00021917,2]
[342847926,1732180236595,-500.0,0.00021917,2]
[342847927,1732180236605,-500.0,0.00021917,2]
[342847928,1732180236614,-683.23,0.00021917,2]
[342847929,1732180236623,-500.0,0.00021917,2]
[342847930,1732180236635,-500.0,0.00021917,2]
[342847931,1732180236644,-500.0,0.00021917,2]
[342847932,1732180236654,-166.0,0.00022,2]
[342847933,1732180236663,-401.52051916,0.00022091,2]